[Event "Swedish-ch MK-Elit 2022"]
[Site "Uppsala"]
[Date "2022.07.05"]
[Round "4.2"]
[White "Johansson, Jan"]
[Black "Engqvist, Thomas"]
[Result "1-0"]
[ECO "E12"]
[WhiteElo "2306"]
[BlackElo "2330"]
[Annotator "TA"]
[PlyCount "93"]
[EventDate "2022.07.01"]
[EventType "tourn"]
[EventCountry "SWE"]
[SourceTitle "playchess.com"]
[Source "ChessBase"]
[SourceQuality "1"]
[TimeControl "40/5400+30:1800+30"]

{[%evp 11,93,5,13,17,7,0,0,-13,0,0,3,6,10,6,9,9,9,9,11,-10,0,0,5,0,27,3,25,16,5,0,0,0,0,-16,-8,-16,-17,-16,0,0,0,0,0,0,0,0,85,0,0,-18,-19,-27,6,2,4,0,0,0,0,0,0,0,11,0,0,0,8,0,6,8,25,0,0,0,0,0,0,0,0,0,0,0,0,0]} 1. d4 {[%emt 0:00:09]} Nf6 {[%emt 0:00:08]} 2. Nf3 {[%emt 0:00:11]} e6 {[%emt 0:00:37]} 3. c4 {[%emt 0:00:58]} b6 {[%emt 0:00:55]} 4. Bg5 {[%emt 0:02:18]} Bb7 {[%emt 0:00:39]} 5. e3 {[%emt 0:00:38]} Be7 {[%emt 0:00:22]} 6. Nc3 {[%emt 0:00:42]} Ne4 {[%emt 0:01:40]} 7. Nxe4 {[%emt 0:08:58] E12: Queen's Indian: Unusual White 4th moves, 4 a3, 4 Nc3 Bb7 5 a3 and 4 Nc3 Bb7 .} Bxe4 {[%emt 0:00:06]} 8. Nd2 {[%emt 0:00:21] [#] Bxe7 is the strong threat.} Bb7 {[%emt 0:01:26]} 9. Bf4 {[%emt 0:00:12]} d6 {[%emt 0:03:35] [#]} 10. Be2 $146 {[%emt 0:11:48]} ({Predecessor:} 10. Qg4 g5 11. d5 h5 12. Qf3 gxf4 13. Qxf4 Bg5 14. Qe4 Nd7 15. f4 Bh4+ 16. g3 Bf6 17. Rb1 Nc5 18. Qf3 a5 {0-1 (18) Tsalko,V (1950)-Volkov,A (2095) Omsk 2009}) 10... Nd7 {[%emt 0:04:17]} 11. Bf3 {[%emt 0:03:27]} Bxf3 {[%emt 0:03:09]} 12. Nxf3 {[%emt 0:00:08]} Bf6 {[%emt 0:13:04]} 13. Qa4 {[%emt 0:10:07]} O-O {[%emt 0:05:40]} 14. O-O {[%emt 0:00:01]} Re8 {[%emt 0:02:20]} 15. Qc6 {[%emt 0:07:34]} a5 {[%emt 0:07:24]} 16. Bg3 {[%emt 0:00:29]} Rc8 {[%emt 0:11:18]} 17. a3 {[%emt 0:07:25]} Ra8 {[%emt 0:05:09]} 18. Rfd1 {[%emt 0:05:43]} a4 {[%emt 0:01:32]} 19. Rac1 {[%emt 0:09:15]} Ra5 {[%emt 0:01:03]} 20. Rc2 {[%emt 0:00:46]} Nb8 {[%emt 0:03:01]} 21. Qe4 {[%emt 0:02:29]} Nd7 {[%emt 0:00:13]} 22. Qg4 {[%emt 0:03:53]} h5 {[%emt 0:06:34]} 23. Qe4 {[%emt 0:07:32]} e5 {[%emt 0:06:30]} 24. dxe5 {[%emt 0:00:08][%cal Oc4c5]} Nxe5 {[%emt 0:00:25]} 25. Bxe5 {[%emt 0:00:54]} Bxe5 {[%emt 0:00:22]} 26. Qc6 {[%emt 0:00:20]} Bf6 {[%emt 0:00:42]} 27. Rd5 {[%emt 0:02:42]} Qa8 $1 {[%emt 0:00:40]} 28. Qd7 {[%emt 0:00:17]} Re7 {[%emt 0:06:10] [#]} (28... Qd8 $11 29. Qc6 Qa8 30. Qxc7 Rxd5 31. cxd5 Qxd5) 29. Qf5 {[%emt 0:03:03] White is more active.} ({White should play} 29. Rxa5 $1 $16 bxa5 30. Qxa4) 29... h4 $11 {[%emt 0:04:04]} 30. g4 {[%emt 0:05:26]} hxg3 {[%emt 0:00:26]} 31. hxg3 {[%emt 0:00:09]} Be5 {[%emt 0:02:37]} 32. Rxa5 {[%emt 0:00:22]} bxa5 {[%emt 0:01:39]} 33. c5 {[%emt 0:00:45]} g6 {[%emt 0:01:24]} 34. Qg4 {[%emt 0:00:13]} dxc5 {[%emt 0:02:18]} 35. Nd2 {[%emt 0:04:21]} Qc6 {[%emt 0:01:38]} 36. Nc4 {[%emt 0:00:57]} Bd6 {[%emt 0:02:48][%cal Be5d6,Bd6e7,Be7f6][%mdl 32]} 37. Rd2 {[%emt 0:00:06]} Kg7 {[%emt 0:00:56]} 38. Nxa5 {[%emt 0:00:40]} Qb5 {[%emt 0:01:09]} 39. Nc4 {[%emt 0:00:19]} Re6 {[%emt 0:00:33]} 40. Qe2 {[%emt 0:01:42]} Be7 {[%emt 0:01:00]} 41. Qd3 {[%emt 0:04:11]} Bf6 {[%emt 0:01:11] The position is equal.} 42. Qd5 {[%emt 0:03:49]} Re7 {[%emt 0:01:49]} 43. Kg2 {[%emt 0:09:17]} Re8 {[%emt 0:01:37]} 44. Qd7 {[%emt 0:03:31]} Qb7+ {[%emt 0:00:44]} 45. Qd5 {[%emt 0:00:20]} Qb5 {[%emt 0:00:46]} 46. Qd7 {[%emt 0:00:09]} Qb7+ {[%emt 0:00:05]} 47. Qd5 {[%emt 0:00:08][%mdl 32768] A balanced but interesting game.  Weighted Error Value: White=0.07 (flawless) /Black=0.08 (flawless) . Loss on time!?} 1-0

[Event "Swedish-ch MK-Elit 2022"]
[Site "Uppsala"]
[Date "2022.07.05"]
[Round "4.3"]
[White "Ernst, Thomas"]
[Black "Andersson, Tommy"]
[Result "1-0"]
[ECO "D58"]
[WhiteElo "2289"]
[BlackElo "2384"]
[Annotator "TA"]
[PlyCount "165"]
[EventDate "2022.07.01"]
[EventType "tourn"]
[EventCountry "SWE"]
[SourceTitle "playchess.com"]
[Source "ChessBase"]
[SourceQuality "1"]
[TimeControl "40/5400+30:1800+30"]

{[%evp 22,165,0,-16,0,0,26,13,26,-29,-19,-37,-26,-26,-13,-10,-15,-7,-18,-28,-27,-53,-36,-64,-61,-75,-75,-126,-117,-121,-64,-52,-24,-33,-15,-13,-15,-15,-15,-15,-12,-11,-49,76,68,66,68,66,70,70,79,85,87,87,204,201,216,196,218,168,172,162,206,207,217,173,173,239,453,552,479,235,235,235,247,256,249,247,239,229,343,337,310,317,296,164,282,192,139,135,288,187,646,656,666,660,651,613,641,478,642,639,583,533,584,377,450,362,29970,29973,29972,29974,29974,29973,29973,29974,29974,29975,29975,29976,29973,29972,29972,29973,29974,29974,29972,29973,29973,29974,29974,29975,29975,29975,29976,29977,29977,29978,29978,29978,29977,29977,29978,29978,29984,12359]} 1. d4 {[%emt 0:00:05] ChessBase} Nf6 {[%emt 0:02:59]} 2. c4 {[%emt 0:00:09]} e6 {[%emt 0:00:03]} 3. Nc3 {[%emt 0:00:13]} d5 {[%emt 0:00:20]} 4. Bg5 {[%emt 0:00:14]} Be7 {[%emt 0:00:24]} 5. e3 {[%emt 0:00:23]} O-O {[%emt 0:01:11]} 6. Nf3 {[%emt 0:00:14]} h6 {[%emt 0:02:17]} 7. Bh4 {[%emt 0:00:10]} b6 {[%emt 0:00:44]} 8. Qc2 {[%emt 0:00:36]} Bb7 {[%emt 0:03:40]} 9. Bxf6 {[%emt 0:02:17]} Bxf6 {[%emt 0:00:06]} 10. cxd5 {[%emt 0:00:07]} exd5 {[%emt 0:00:27]} 11. g4 {[%emt 0:01:20]} c5 {[%emt 0:06:02]} 12. O-O-O {[%emt 0:00:25]} cxd4 {[%emt 0:04:38] D58: Queen's Gambit Declined: Tartakower Defence.} 13. exd4 {[%emt 0:00:08]} Bc8 {[%emt 0:22:31] A strong pair of Bishops.} 14. Rg1 {[%emt 0:01:17]} ({But not} 14. Ne5 Bxe5 15. dxe5 Bxg4 $15) 14... Be6 {[%emt 0:00:26] [#] The position is equal.} 15. Bd3 $146 {[%emt 0:14:24]} (15. Kb1 $142) ({Predecessor:} 15. Qd2 Nc6 16. Bb5 Rc8 17. h4 Bxh4 18. g5 Bxg5 19. Nxg5 hxg5 20. Rxg5 Qf6 21. f4 {0-1 (57) Veresov,G-Makogonov,V Moscow 1940 URS-ch [ChessBase]}) 15... Nc6 $11 {[%emt 0:09:33]} 16. Bf5 {[%emt 0:02:44]} Qd6 {[%emt 0:04:09]} 17. Kb1 {[%emt 0:04:57]} Nb4 {[%emt 0:07:09]} 18. Qd2 {[%emt 0:01:18]} Bxf5+ $1 {[%emt 0:03:41]} 19. gxf5 {[%emt 0:00:12] Hoping for Qxh6.} Kh7 {[%emt 0:01:04]} 20. Rg4 {[%emt 0:08:32][%cal Of3e5]} Nc6 {[%emt 0:02:25] Against Ne5} 21. Rdg1 {[%emt 0:02:52]} Rae8 {[%emt 0:00:45]} 22. Ka1 {[%emt 0:05:11]} a6 {[%emt 0:01:48]} 23. h4 {[%emt 0:07:14]} b5 {[%emt 0:04:33]} 24. Qd3 {[%emt 0:01:55]} (24. Qf4 $142 Qxf4 25. Rxf4) 24... Kh8 $1 $17 {[%emt 0:01:57]} 25. Ne2 {[%emt 0:06:12]} Nb4 {[%emt 0:04:14]} (25... Rc8 $17 26. Kb1 Nb4) 26. Qd2 $15 {[%emt 0:00:23][%cal Of3e5]} Re4 {[%emt 0:01:37] Against Ne5} 27. Ne5 $1 {[%emt 0:02:54]} Rxg4 {[%emt 0:12:08]} ({Don't do} 27... Bxe5 28. dxe5 Qxe5 29. Rxg7 $1 Qxg7 30. Rxg7 Kxg7 31. a3 $16) 28. Nxg4 {[%emt 0:00:49]} Nc6 {[%emt 0:01:33]} (28... Bxh4 $2 29. Rh1 Rc8 30. Rxh4 $18) 29. Nxh6 {[%emt 0:04:36]} Qb4 {[%emt 0:01:25]} 30. Qxb4 {[%emt 0:00:18]} Nxb4 {[%emt 0:00:02]} 31. Ng4 {[%emt 0:00:17]} Nc2+ {[%emt 0:00:13]} (31... Re8 $1 $11 32. Nc3 Bxd4) 32. Kb1 $16 {[%emt 0:00:20]} Nxd4 {[%emt 0:00:03]} 33. Nxd4 {[%emt 0:00:28]} Bxd4 {[%emt 0:00:02][%mdl 4096] Endgame KRB-KRN} 34. Rd1 {[%emt 0:00:17]} Bb6 {[%emt 0:02:18]} 35. Rxd5 {[%emt 0:00:12]} Re8 {[%emt 0:00:31]} 36. Rd6 {[%emt 0:01:39]} Bc5 {[%emt 0:00:51]} 37. Rxa6 {[%emt 0:00:41]} b4 {[%emt 0:00:34]} (37... Re1+ $16 38. Kc2 Bxf2) 38. Rc6 $18 {[%emt 0:01:04]} Be7 {[%emt 0:00:31]} 39. h5 {[%emt 0:06:56]} Bf8 {[%emt 0:00:12]} 40. h6 {[%emt 0:04:35]} gxh6 {[%emt 0:00:24]} 41. Nxh6 {[%emt 0:30:14]} Re1+ {[%emt 0:06:02]} 42. Kc2 {[%emt 0:00:00]} Re2+ {[%emt 0:00:10] [#]} 43. Kb3 $1 {[%emt 0:00:00]} Rxf2 {[%emt 0:01:41]} 44. Nxf7+ {[%emt 0:00:00]} Kg7 $2 {[%emt 0:01:01]} (44... Kg8 {was necessary.}) 45. Ng5 {[%emt 0:00:00]} Be7 {[%emt 0:02:51]} 46. Ne6+ {[%emt 0:00:00]} (46. Rc7 $142 Re2 {[#]} 47. Nh7 $1 {[%mdl 512]} Kxh7 48. f6 Re3+ 49. Kc4) 46... Kf7 {[%emt 0:01:43]} 47. Nd4 {[%emt 0:00:00] Inhibits Rf3+.} Bf6 {[%emt 0:07:01]} 48. Rc7+ {[%emt 0:00:00]} Ke8 {[%emt 0:00:14]} 49. Rc4 {[%emt 0:00:00]} Rd2 {[%emt 0:02:56]} 50. Nc2 {[%emt 0:00:00]} Rd3+ {[%emt 0:00:11]} (50... Rf2 $142 51. Rxb4 Rxf5) 51. Kxb4 {[%emt 0:00:00]} Bxb2 {[%emt 0:00:05]} 52. a4 {[%emt 0:00:00][%cal Ba2a4,Ba4a5][%mdl 32]} Bf6 {[%emt 0:03:30]} 53. Rf4 {[%emt 0:00:00]} (53. Re4+ $142 Kd7 54. a5) 53... Kd7 {[%emt 0:02:15]} (53... Rd5 $142 54. Ne3 Be7+ 55. Kc3 Rc5+ 56. Kb3 Kf7) 54. Kb5 {[%emt 0:00:00] aiming for Nb4.} Rd5+ {[%emt 0:01:29]} 55. Kc4 {[%emt 0:00:00]} Rd1 {[%emt 0:00:22] A mistake that costs the game.} (55... Ra5 $16 {might work better.}) 56. Nb4 {[%emt 0:00:00]} Kd6 $2 {[%emt 0:03:27]} (56... Be5) 57. a5 {[%emt 0:02:59]} Rc1+ {[%emt 0:02:07]} 58. Kb5 {[%emt 0:02:15]} Rc5+ {[%emt 0:00:10]} 59. Ka4 {[%emt 0:00:14]} Rc1 {[%emt 0:00:38]} 60. Rf3 {[%emt 0:02:23]} Rb1 {[%emt 0:01:37]} 61. Kb5 {[%emt 0:05:57]} Kc7 {[%emt 0:00:29]} 62. Rf4 {[%emt 0:01:10]} Kb7 {[%emt 0:00:17]} 63. Rc4 {[%emt 0:05:09] Black must now prevent a6+.} Be5 {[%emt 0:01:23]} 64. a6+ {[%emt 0:01:49]} Kb8 $2 {[%emt 0:00:19]} (64... Ka7 $18 65. Kc6 Bb2) 65. Kb6 {[%emt 0:02:12] White mates.} Bc7+ {[%emt 0:00:29]} 66. Rxc7 {[%emt 0:00:19]} Rxb4+ {[%emt 0:00:05] KR-KR} 67. Ka5 {[%emt 0:00:07]} Rf4 {[%emt 0:01:07]} 68. Rf7 {[%emt 0:01:13]} Rf1 {[%emt 0:00:08]} 69. Kb6 {[%emt 0:00:16][%cal Rf7f8]} Rb1+ {[%emt 0:00:05]} 70. Kc5 {[%emt 0:00:27]} Ra1 {[%emt 0:00:28]} 71. Rf6 {[%emt 0:00:19]} Ka7 {[%emt 0:00:09]} 72. Kd5 {[%emt 0:00:22]} Rf1 {[%emt 0:00:24]} 73. Ke5 {[%emt 0:00:21]} Re1+ {[%emt 0:00:11]} 74. Kf4 {[%emt 0:00:13]} Rf1+ {[%emt 0:00:11]} 75. Kg5 {[%emt 0:00:08]} Rg1+ {[%emt 0:00:06]} 76. Kh6 {[%emt 0:00:07]} Rf1 {[%emt 0:00:22]} 77. Kg7 {[%emt 0:00:54]} Rf2 {[%emt 0:00:08]} 78. Rf8 {[%emt 0:00:27]} Rg2+ {[%emt 0:00:31]} 79. Kf7 {[%emt 0:00:17]} Kxa6 {[%emt 0:00:03]} 80. Rb8 {[%emt 0:01:16]} Rf2 {[%emt 0:00:23]} 81. f6 {[%emt 0:00:09]} Rf3 {[%emt 0:00:03]} 82. Kg7 {[%emt 0:00:39]} Ka7 {[%emt 0:00:02]} 83. Rb1 {[%emt 0:00:19] Weighted Error Value: White=0.23 (precise) /Black=0.38} (83. Rb5 $142 Rg3+ 84. Kf8 Ka6 85. Rf5 Rb3 86. f7 Rc3 87. Kg7 Rc7 88. Kg8) 1-0

[Event "Swedish-ch MK-Elit 2022"]
[Site "Uppsala"]
[Date "2022.07.05"]
[Round "4.4"]
[White "Thorn, Eric"]
[Black "Trost, Edvin"]
[Result "0-1"]
[ECO "E92"]
[WhiteElo "2366"]
[BlackElo "2345"]
[Annotator "TA"]
[PlyCount "60"]
[EventDate "2022.07.01"]
[EventType "tourn"]
[EventCountry "SWE"]
[SourceTitle "playchess.com"]
[Source "ChessBase"]
[SourceQuality "1"]
[TimeControl "40/5400+30:1800+30"]

{[%evp 16,60,20,22,30,20,20,30,24,37,44,0,0,0,0,0,35,37,33,20,58,-86,-49,-231,-225,-210,-165,-562,-572,-537,-557,-1385,-1381,-1301,-1287,-1368,-1402,-1987,-1735,-1320,-976,-959,-983,-941,-918,-29988,-29987]} 1. d4 {[%emt 0:00:03]} Nf6 {[%emt 0:01:31]} 2. c4 {[%emt 0:00:09]} g6 {[%emt 0:00:19]} 3. Nc3 {[%emt 0:00:08]} Bg7 {[%emt 0:00:05]} 4. e4 {[%emt 0:00:22]} d6 {[%emt 0:00:17]} 5. Be2 {[%emt 0:00:26]} O-O {[%emt 0:00:23]} 6. Nf3 {[%emt 0:00:05]} e5 {[%emt 0:00:50]} 7. d5 {[%emt 0:00:07]} a5 {[%emt 0:01:53]} 8. Bg5 {[%emt 0:00:07]} h6 {[%emt 0:00:14]} 9. Be3 {[%emt 0:00:05]} Ng4 {[%emt 0:01:16] E92: King's Indian: Classical: 6 Be2 e5: 7 dxe5, 7 Be3 and Petrosian System without 7...Nbd7.} 10. Bd2 {[%emt 0:00:26] 10.Bd2 scores better than 10.Bc1.} f5 {[%emt 0:00:54]} 11. h3 {[%emt 0:00:10]} Nf6 {[%emt 0:00:18] White has an edge.} 12. exf5 {[%emt 0:00:05]} gxf5 {[%emt 0:01:08]} 13. g4 {[%emt 0:00:42]} fxg4 {[%emt 0:10:20]} 14. hxg4 {[%emt 0:00:15]} Nxg4 {[%emt 0:00:28][%cal Oe5e4] White must now prevent ...e4!} 15. Ne4 {[%emt 0:00:23] Strongly threatening Nh4.} Bf5 {[%emt 0:08:45]} 16. Bd3 {[%emt 0:02:41] [#] aiming for Qe2.} Nd7 {[%emt 0:12:22] [#]} 17. Qc2 $146 {[%emt 0:08:53]} ({Predecessor:} 17. Rg1 Ndf6 18. Qe2 Nxe4 19. Bxe4 Qf6 20. Bxf5 Qxf5 21. Nh4 Qxf2+ 22. Qxf2 Nxf2 23. Bxh6 {½-½ (84) Heimann,A (2601)-Warmerdam,M (2422) Germany 2018}) 17... c6 {[%emt 0:12:11]} 18. O-O-O {[%emt 0:47:33]} (18. dxc6 $14 {keeps the upper hand.} bxc6 19. Nh4 (19. Nxd6 $2 Bxd3 20. Qxd3 Nc5 $19)) 18... cxd5 $17 {[%emt 0:04:20]} 19. cxd5 {[%emt 0:00:06] White does not recover from this.} (19. Nxd6 $15 e4 20. Nxf5 Rxf5 21. Rdg1) 19... Rc8 $19 {[%emt 0:07:09]} 20. Bc3 {[%emt 0:01:02]} b5 {[%emt 0:08:35]} 21. Nh4 $2 {[%emt 0:13:51]} ({Don't blunder} 21. Nxd6 $2 Bxd3 22. Rxd3 Nc5 23. Nxc8 Nxd3+ 24. Qxd3 Nxf2 25. Qxb5 (25. Qg6 $2 Rf6 $19) 25... Nxh1) (21. Rhg1 {is tougher.} b4 22. Nxd6 Bxd3 23. Qxd3 (23. Rxd3 $2 Nc5 $19) 23... Nxf2 24. Qg6) 21... Bxe4 {[%emt 0:08:04]} 22. Bxe4 {[%emt 0:00:09] Threatens to win with Bh7+.} Rxf2 {[%emt 0:00:46]} 23. Qd3 {[%emt 0:06:11]} b4 {[%emt 0:07:06]} 24. Bh7+ {[%emt 0:00:19]} Kh8 {[%emt 0:01:13]} 25. Ng6+ {[%emt 0:00:51]} Kxh7 {[%emt 0:00:13]} 26. Nxe5+ {[%emt 0:00:14]} Kg8 {[%emt 0:00:54]} 27. Nxg4 {[%emt 0:06:28]} Qg5+ {[%emt 0:01:35]} 28. Kb1 {[%emt 0:07:00] [#]} bxc3 $1 {[%emt 0:00:11]} 29. Nxf2 {[%emt 0:00:08]} c2+ {[%emt 0:00:09]} 30. Ka1 {[%emt 0:00:58]} c1=Q+ {[%emt 0:00:21] Weighted Error Value: White=1.33/Black=0.30} 0-1

[Event "Swedish-ch MK-Elit 2022"]
[Site "Uppsala"]
[Date "2022.07.05"]
[Round "4.5"]
[White "Cederstam, Carl"]
[Black "Von Bahr, Oskar"]
[Result "1/2-1/2"]
[ECO "C65"]
[WhiteElo "2332"]
[BlackElo "2386"]
[Annotator "TA"]
[PlyCount "74"]
[EventDate "2022.07.01"]
[EventType "tourn"]
[EventCountry "SWE"]
[SourceTitle "playchess.com"]
[Source "ChessBase"]
[SourceQuality "1"]
[TimeControl "40/5400+30:1800+30"]

{[%evp 12,74,25,25,27,3,12,13,12,12,18,0,0,4,16,32,27,-15,-12,-8,-10,-72,-67,-74,-7,0,-10,-2,4,-29,-7,-15,-3,-6,-7,-9,0,0,15,7,20,7,20,25,31,11,29,16,25,16,77,46,48,35,40,31,25,0,0,0,21,0,0,0,20]} 1. e4 {[%emt 0:00:05]} e5 {[%emt 0:00:33]} 2. Nf3 {[%emt 0:00:18]} Nc6 {[%emt 0:00:15]} 3. Bb5 {[%emt 0:00:17]} Nf6 {[%emt 0:00:31]} 4. d3 {[%emt 0:00:24]} Bc5 {[%emt 0:00:22]} 5. c3 {[%emt 0:00:48]} d6 {[%emt 0:04:52]} 6. Nbd2 {[%emt 0:01:39]} O-O {[%emt 0:02:25]} 7. O-O {[%emt 0:00:36]} Bd7 {[%emt 0:09:11] 7...Ne7 is becoming the main line. C65: Ruy Lopez: Berlin Defence (3...Nf6), unusual lines and 4 0-0 Bc5.} 8. a4 {[%emt 0:02:03] [#] Black must now prevent Bxc6.} a6 {[%emt 0:02:04]} 9. Bc4 {[%emt 0:00:36]} a5 {[%emt 0:02:39]} 10. Re1 {[%emt 0:08:03] [#]} Be6 $146 {[%emt 0:03:09]} ({Predecessor (2):} 10... Ng4 11. Re2 Nf6 12. Nf1 Be6 13. Bxe6 fxe6 14. Qb3 Qd7 15. Ng3 h6 16. Be3 Bxe3 17. fxe3 b6 {½-½ (28) Jørgensen,P (2357)-Duszynski,J (2362) ICCF email 2018}) 11. Bb5 {[%emt 0:02:49]} Na7 {[%emt 0:03:15]} 12. d4 {[%emt 0:01:45]} Nxb5 {[%emt 0:00:15]} 13. dxc5 {[%emt 0:01:03]} Na7 {[%emt 0:00:13]} 14. Ng5 {[%emt 0:00:56]} Bg4 {[%emt 0:03:01]} 15. f3 {[%emt 0:03:03]} Bc8 {[%emt 0:04:37]} 16. f4 {[%emt 0:17:57]} (16. Nc4 $11 {keeps the balance.}) 16... exf4 $17 {[%emt 0:06:12]} 17. Nc4 {[%emt 0:02:42][%csl LRa5,LRd6,LRf4][%cal Rc5d6]} d5 {[%emt 0:10:47]} ({Black should try} 17... Nd7 $17 18. Bxf4 (18. Qh5 h6 $17) 18... Nxc5) 18. exd5 $11 {[%emt 0:02:04]} Nxd5 {[%emt 0:01:45]} 19. Re5 {[%emt 0:01:41]} ({Don't play} 19. Qh5 h6 20. Nf3 Nc6 $15) 19... Ne3 $132 {[%emt 0:07:49][%mdl 2048] Black is not keeping still} 20. Nxe3 {[%emt 0:19:54] [#] Strongly threatening Nd5. Active counter play!} fxe3 {[%emt 0:00:42][%cal Rd8d1]} 21. Rd5 {[%emt 0:08:00]} ({Don't blunder} 21. Bxe3 $2 Qxd1+ 22. Rxd1 f6 $19) 21... e2 {[%emt 0:05:18]} 22. Rxd8 {[%emt 0:00:17]} exd1=Q+ {[%emt 0:00:44]} 23. Rxd1 {[%emt 0:00:03]} h6 {[%emt 0:02:55]} 24. Nf3 {[%emt 0:00:58]} g5 {[%emt 0:01:13] Prevents Bf4.} 25. Nd4 {[%emt 0:04:11]} Re8 {[%emt 0:02:17]} 26. Bd2 {[%emt 0:01:02][%cal Oh2h4,Bc1d2,Bd2e1,Be1g3,Bg3c7,Bc7d8][%mdl 32]} Bg4 {[%emt 0:02:03]} 27. Re1 {[%emt 0:00:21]} Bd7 {[%emt 0:00:54]} 28. b3 {[%emt 0:00:49][%cal Oh2h4]} Rxe1+ {[%emt 0:04:23]} 29. Bxe1 {[%emt 0:05:51]} Re8 {[%emt 0:08:34]} 30. Bg3 {[%emt 0:00:40]} b6 {[%emt 0:04:01]} (30... Rc8 $11) 31. cxb6 {[%emt 0:00:28]} cxb6 {[%emt 0:00:03]} 32. Bc7 {[%emt 0:06:12]} Nc8 {[%emt 0:00:20]} 33. Kf2 {[%emt 0:02:20]} Re7 {[%emt 0:02:35][%cal Od7a4]} 34. Bd8 {[%emt 0:02:11]} Re8 {[%emt 0:00:31] The position is equal.} 35. Bc7 {[%emt 0:00:04]} Re7 {[%emt 0:00:03][%cal Od7a4]} 36. Bd8 {[%emt 0:02:22]} Re8 {[%emt 0:00:05]} 37. Bc7 {[%emt 0:00:05]} Re7 {[%emt 0:00:18] Weighted Error Value: White=0.14 (very precise) /Black=0.12 (very precise)} 1/2-1/2

[Event "Swedish-ch MK-Elit 2022"]
[Site "Uppsala"]
[Date "2022.07.06"]
[Round "5.1"]
[White "Wiedenkeller, Michael"]
[Black "Johansson, Jan"]
[Result "0-1"]
[ECO "D00"]
[WhiteElo "2437"]
[BlackElo "2306"]
[Annotator "TA"]
[PlyCount "40"]
[EventDate "2022.07.01"]
[EventType "tourn"]
[EventCountry "SWE"]
[SourceTitle "playchess.com"]
[Source "ChessBase"]
[SourceQuality "1"]
[TimeControl "40/5400+30:1800+30"]

{[%evp 9,40,10,20,4,0,2,-2,-56,-61,-187,-188,-195,-208,-209,-223,-205,-204,-202,-181,-240,-246,-339,-206,-208,-191,-202,-212,-324,-307,-402,-262,-506,-483]} 1. d4 {[%emt 0:00:27]} Nf6 {[%emt 0:00:24]} 2. Bg5 {[%emt 0:01:18]} d5 {[%emt 0:00:56]} 3. Bxf6 {[%emt 0:00:38]} exf6 {[%emt 0:00:06]} 4. e3 {[%emt 0:04:06]} Bf5 {[%emt 0:04:30]} 5. Nd2 {[%emt 0:03:25]} Bd6 {[%emt 0:05:23]} 6. Ne2 {[%emt 0:11:00] D00: 1 d4 d5: Unusual lines.} O-O {[%emt 0:13:40]} 7. Ng3 {[%emt 0:07:08]} Bg6 {[%emt 0:02:42]} 8. c4 {[%emt 0:13:18]} (8. Be2 $11) 8... c5 $1 $15 {[%emt 0:04:51] [#]} ({Resist} 8... Bb4 9. a3 Bxd2+ 10. Qxd2 $14) 9. Be2 $146 {[%emt 0:19:38]} ({White should try} 9. dxc5 $1 $15 Bxg3 10. hxg3) ({Predecessor:} 9. dxc5 Bxc5 10. Be2 dxc4 11. O-O c3 12. bxc3 Nc6 13. Nb3 Ba3 14. e4 Bb2 15. Rb1 Bxc3 {1-0 (32) Berglund,J-Arvoll,O Norway 1988}) 9... cxd4 $19 {[%emt 0:02:09]} 10. exd4 {[%emt 0:00:22]} Nc6 {[%emt 0:00:25]} 11. Nf3 {[%emt 0:16:20]} Qa5+ {[%emt 0:02:53]} 12. Kf1 {[%emt 0:00:12] [#]} dxc4 $1 {[%emt 0:00:12]} 13. Bxc4 {[%emt 0:00:28]} Rad8 {[%emt 0:04:01][%cal Od6c5]} 14. Kg1 {[%emt 0:02:17] [#]} (14. Ne2 $142) 14... Bc5 $1 {[%emt 0:05:07][%cal Rc6d4][%mdl 512] A strong pair of Bishops.} 15. h4 {[%emt 0:05:23]} (15. Ne2 Bh5) 15... Bxd4 {[%emt 0:06:13]} 16. Nxd4 {[%emt 0:05:21]} Rxd4 {[%emt 0:01:31]} 17. Qb3 {[%emt 0:00:12]} h5 {[%emt 0:01:59]} 18. Ne2 {[%emt 0:01:49]} (18. Rh3 $142) 18... Rd2 {[%emt 0:01:54]} 19. Rh3 {[%emt 0:03:04]} Ne5 {[%emt 0:02:44]} ({Wrong is} 19... Qc5 $2 20. Qe3 Qb4 21. Nf4 $19) 20. Rg3 $2 {[%emt 0:01:21]} (20. Nf4 {is a better defense.}) 20... Bc2 {[%emt 0:01:37] White did not feel at home in the position after the opening.  Weighted Error Value: White=0.59/Black=0.17 (very precise)} 0-1

[Event "Swedish-ch MK-Elit 2022"]
[Site "Uppsala"]
[Date "2022.07.06"]
[Round "5.2"]
[White "Andersson, Tommy"]
[Black "Furhoff, Johan"]
[Result "1/2-1/2"]
[ECO "D02"]
[WhiteElo "2384"]
[BlackElo "2348"]
[Annotator "TA"]
[PlyCount "34"]
[EventDate "2022.07.01"]
[EventType "tourn"]
[EventCountry "SWE"]
[SourceTitle "playchess.com"]
[Source "ChessBase"]
[SourceQuality "1"]
[TimeControl "40/5400+30:1800+30"]

{[%evp 12,34,27,11,19,0,0,0,21,-3,10,10,7,14,12,17,60,55,49,33,34,41,54,0,-13]} 1. Nf3 {[%emt 0:00:04]} Nc6 {[%emt 0:00:20]} 2. d4 {[%emt 0:00:10]} d5 {[%emt 0:00:04]} 3. g3 {[%emt 0:00:06]} Bg4 {[%emt 0:00:16]} 4. Bg2 {[%emt 0:00:08]} Qd7 {[%emt 0:00:30]} 5. O-O {[%emt 0:00:27]} Bh3 {[%emt 0:02:12]} 6. c3 {[%emt 0:00:47]} Bxg2 {[%emt 0:03:31]} 7. Kxg2 {[%emt 0:00:06]} e6 {[%emt 0:00:32] [#] D02: 1 d4 d5 2 Nf3 sidelines, including 2...Nf6 3 g3 and 2...Nf6 3 Bf4.} 8. b4 $146 {[%emt 0:02:58]} ({Predecessor:} 8. Nbd2 Nf6 9. Qc2 Bd6 10. e4 Nxe4 11. Nxe4 dxe4 12. Qxe4 O-O-O 13. Re1 h6 14. b4 Ne7 15. Bb2 {1-0 (63) Radzhabov,R (2360)-Sapegin,Y (2020) Sochi 2021}) 8... Bd6 {[%emt 0:02:10]} 9. Nbd2 {[%emt 0:01:15]} Nf6 {[%emt 0:09:14] Against e4} 10. a3 {[%emt 0:06:43]} Ne7 {[%emt 0:07:13]} 11. c4 {[%emt 0:03:54] [#] Strongly threatening c5.} c6 {[%emt 0:03:15]} 12. c5 {[%emt 0:02:39]} Bc7 {[%emt 0:03:41]} 13. Ne5 {[%emt 0:05:54]} Bxe5 {[%emt 0:07:59]} 14. dxe5 {[%emt 0:00:57]} Ng4 {[%emt 0:01:24]} 15. Nf3 {[%emt 0:03:13]} f6 {[%emt 0:02:47]} 16. exf6 {[%emt 0:04:35]} gxf6 {[%emt 0:05:04]} 17. Qd2 {[%emt 0:27:30]} (17. h3 $14 Ne5 {[#]} 18. Bg5 $1 Nxf3 19. Bxf6) 17... h5 {[%emt 0:04:53] Weighted Error Value: White=0.16 (very precise) /Black=0.09 (flawless)} 1/2-1/2